Cogmind - Beta 14 @@@ ROGUE MODE // 2024.08.25 @ 23:40:37 Player: Olafz Result: Destroyed by S-10 Pest with Light Assault Rifle Performance ------------- Evolutions (1) 500 Regions Visited (3) 600 Robots Destroyed (0) 0 Value Destroyed (0) 0 Prototype IDs (0) 0 Alien Tech Used (0) 0 Bonus (200) 200 TOTAL SCORE: 1300 Bonus ------- Pacifist 200 Cogmind --------- Core Integrity 0/400 Matter 300/300 Energy 99/100 System Corruption 0% Temperature Cool (0) Movement Core (50) Location -9/Storage Parts ------- > --- POWER (1) -------- (None) > --- PROPULSION (3) --- (None) > --- UTILITY (3) ------ (None) > --- WEAPON (2) ------- (None) > --- INVENTORY (5) ---- (None) Peak State ------------ None Favorites ----------- Power None Propulsion None Utility None Weapon None Build | -11 -10 -9 -9 ------- Run | Yrd Mat Mat Sto Slots Evolved 2 | . . 2 . Power . | . . . . Propulsion 1 | . . 1 . Utility 1 | . . 1 . Weapon . | . . . . Parts Attached . | . . . . Power . | . . . . Engine . | . . . . Core . | . . . . Reactor . | . . . . Propulsion . | . . . . Treads . | . . . . Leg . | . . . . Wheel . | . . . . Hover . | . . . . Flight . | . . . . Utility . | . . . . Device . | . . . . Storage . | . . . . Processor . | . . . . Hackware . | . . . . Protection . | . . . . Artifact . | . . . . Weapon . | . . . . Energy Gun . | . . . . Energy Cannon . | . . . . Ballistic Gun . | . . . . Ballistic Cannon . | . . . . Launcher . | . . . . Special Weapon . | . . . . Impact Weapon . | . . . . Slashing Weapon . | . . . . Piercing Weapon . | . . . . Special Melee Weapon . | . . . . Unidentified Prototypes . | . . . . Parts Lost . | . . . . Power . | . . . . Propulsion . | . . . . Utility . | . . . . Weapon . | . . . . Highest Loss Streak . | . . . . To Critical Strikes . | . . . . Average Slot Usage (%) . | . . . . Peak Build Rating . | . . . . Average Rating . | . . . . On Entrance . | . . . . Naked Turns 177 | . 21 20 136 Heaviest Build . | . . . . Greatest Support 3 | 3 3 3 3 Greatest Overweight (x) . | . . . . Average Overweight (x) . | . . . . Largest Inventory Capacity 5 | 5 5 5 5 Average Capacity 5 | 5 5 5 5 Most Carried . | . . . . Average Carried . | . . . . Final Capacity 5 | 5 5 5 5 Final Carried . | . . . . Class Distribution -------------------- 100% | Mutant Dominant Class ---------------- Mutant | -10/Materials Mutant | -9/Materials Mutant | -9/Storage Resources | -11 -10 -9 -9 ----------- Run | Yrd Mat Mat Sto Matter Collected 200 | 200 . . . Remotely . | . . . . Salvage Created . | . . . . Parts . | . . . . Haulers Intercepted . | . . . . Recyclers Shooed . | . . . . Parts Field Recycled . | . . . . Retrieved Matter . | . . . . Parts Self-Destructed . | . . . . Prevented . | . . . . Kills | -11 -10 -9 -9 ------- Run | Yrd Mat Mat Sto Combat Hostiles Destroyed . | . . . . Classes Destroyed . | . . . . Best Kill Streak . | . . . . Combat Bots Only . | . . . . Max Kills in Single Turn . | . . . . Gunslinging . | . . . . Exploded . | . . . . Melee . | . . . . Uniques/NPCs Destroyed . | . . . . Combat | -11 -10 -9 -9 -------- Run | Yrd Mat Mat Sto Hostile Shots Fired 77 | . 7 . 70 Missed 31 | . 2 . 29 Damage Taken 459 | . 54 . 405 Core 459 | . 54 . 405 Absorbed by Shields . | . . . . Core Remaining (%) 89 | 100 78 . . Volleys Fired . | . . . . Largest . | . . . . Hottest . | . . . . Shots Fired . | . . . . Gun . | . . . . Cannon . | . . . . Launcher . | . . . . Special . | . . . . Kinetic . | . . . . Thermal . | . . . . Explosive . | . . . . Electromagnetic . | . . . . Robot Hit Streak . | . . . . Robot Miss Streak . | . . . . Penetration Max . | . . . . Secondary Targets . | . . . . Shots Hit Robots . | . . . . Core Hits . | . . . . Critical Kills . | . . . . Critical Parts Destroyed . | . . . . Critical Strikes . | . . . . Melee Attacks . | . . . . Impact . | . . . . Slashing . | . . . . Piercing . | . . . . Sneak Attacks . | . . . . Combat Hostiles . | . . . . Follow-up Attacks . | . . . . Damage Inflicted 7 | . . . 7 Guns . | . . . . Cannons . | . . . . Explosions . | . . . . Melee . | . . . . Ramming 7 | . . . 7 Kinetic . | . . . . Thermal . | . . . . Explosive . | . . . . Electromagnetic . | . . . . Impact . | . . . . Slashing . | . . . . Piercing . | . . . . Highest Corruption . | . . . . Average Corruption . | . . . . Corruption Purged . | . . . . Corruption Blocked . | . . . . Overload Shots . | . . . . Overflow Damage . | . . . . Projectiles . | . . . . Explosions . | . . . . Melee . | . . . . Knockbacks . | . . . . Impact . | . . . . Kinetic . | . . . . Secondary . | . . . . Self-Inflicted Damage 3 | . . . 3 Shots . | . . . . Rammed 2 | . . . 2 Targets Rammed 2 | . . . 2 Kicked . | . . . . Crushed . | . . . . Highest Temperature . | . . . . Average Temperature . | . . . . Received Heat Transfer 90 | . 30 . 60 Siege Activations . | . . . . Robots Corrupted . | . . . . Combat Hostiles . | . . . . Parts Fried . | . . . . Impact Corruptions . | . . . . Robots Melted . | . . . . Combat Hostiles . | . . . . Parts Melted . | . . . . Heat Transferred . | . . . . Parts Sabotaged . | . . . . Parts Stolen . | . . . . Parts Stripped . | . . . . Power Chain Reactions . | . . . . Alert | -11 -10 -9 -9 ------- Run | Yrd Mat Mat Sto Peak Influence 120 | . . . 120 Initial . | . . . . Average 21 | . . . 29 Maximum Alert Level . | . . . . Low Security (%) 100 | 100 100 100 100 Level 1 . | . . . . Level 2 . | . . . . Level 3 . | . . . . Level 4 . | . . . . Level 5 . | . . . . High Security . | . . . . Max Security . | . . . . Squads Dispatched 1 | . 1 . . Investigation 1 | . 1 . . Extermination . | . . . . Reinforcement . | . . . . Assault . | . . . . Garrison . | . . . . Intercept . | . . . . Searches Triggered . | . . . . Construction Impeded . | . . . . Haulers Reinforced . | . . . . Active Scanning Responses . | . . . . Cargo Convoy Interrupts . | . . . . Stealth | -11 -10 -9 -9 --------- Run | Yrd Mat Mat Sto Distress Signals 2 | . . . 2 Communications Jammed . | . . . . Distress Signals . | . . . . Times Spotted 18 | . 3 . 15 Peak Tracking Total 11 | . 4 . 11 Tactical Retreats 2 | . . . 2 Traps | -11 -10 -9 -9 ------- Run | Yrd Mat Mat Sto Traps Triggered 3 | . 1 . 2 Indirectly . | . . . . Trap Hack Attempts . | . . . . Triggered . | . . . . Disarmed . | . . . . Reprogrammed . | . . . . Reused . | . . . . Traps Extracted . | . . . . Installed . | . . . . Triggered . | . . . . Machines | -11 -10 -9 -9 ---------- Run | Yrd Mat Mat Sto Machines Disabled . | . . . . Max in Single Turn . | . . . . Machines Repaired . | . . . . Machines Dismantled . | . . . . Machines Sabotaged . | . . . . Overloaded Fab Kills . | . . . . Hacking | -11 -10 -9 -9 --------- Run | Yrd Mat Mat Sto Machines Accessed . | . . . . Terminals . | . . . . Fabricators . | . . . . Repair Stations . | . . . . Recycling Units . | . . . . Scanalyzers . | . . . . Garrison Access . | . . . . Total Hacks . | . . . . Successful . | . . . . Failed . | . . . . Catastrophic . | . . . . Database Lockouts . | . . . . Manual . | . . . . Terminals . | . . . . Fabricators . | . . . . Repair Stations . | . . . . Recycling Units . | . . . . Scanalyzers . | . . . . Garrison Access . | . . . . Terminal Hacks . | . . . . Fabricator Hacks . | . . . . Repair Station Hacks . | . . . . Recycling Unit Hacks . | . . . . Scanalyzer . | . . . . Garrison Access Hacks . | . . . . Unauthorized Hacks . | . . . . Terminals . | . . . . Fabricators . | . . . . Repair Stations . | . . . . Recycling Units . | . . . . Scanalyzers . | . . . . Garrison Access . | . . . . Data Cores Recovered . | . . . . Used . | . . . . Hacking Detections . | . . . . Full Trace Events . | . . . . Feedback Events . | . . . . Feedback Blocked . | . . . . Robot Schematics Acquired . | . . . . Robots Built . | . . . . Authchips . | . . . . Time . | . . . . Total Robot Build Rating . | . . . . Part Schematics Acquired . | . . . . Parts Built . | . . . . Authchips . | . . . . Time . | . . . . Total Part Build Rating . | . . . . Parts Repaired . | . . . . Time . | . . . . Parts Recycled . | . . . . Recycled Matter . | . . . . Retrieved Matter . | . . . . Retrieved Components . | . . . . Parts Scanalyzed . | . . . . Part Schematics Acquired . | . . . . Parts Damaged . | . . . . Bothacking | -11 -10 -9 -9 ------------ Run | Yrd Mat Mat Sto Used RIF Installer . | . . . . Robots Hacked . | . . . . Non-combat . | . . . . Combat . | . . . . Robot Hacks Applied . | . . . . Relay Couplers Released . | . . . . Fabnet Peak Effective % . | . . . . Robots Rewired . | . . . . Allies Hacked . | . . . . Hacks Repelled . | . . . . Allies | -11 -10 -9 -9 -------- Run | Yrd Mat Mat Sto Total Allies . | . . . . Largest Group . | . . . . Highest-Rated Group . | . . . . Highest-Rated Ally . | . . . . Total Orders . | . . . . Ally Attacks . | . . . . Total Damage . | . . . . Kills . | . . . . Allies Corrupted . | . . . . Allies Melted . | . . . . Intel | -11 -10 -9 -9 ------- Run | Yrd Mat Mat Sto Robot Analysis Total . | . . . . Derelict Logs Recovered . | . . . . Drone Launches . | . . . . Drone Recoveries . | . . . . Exploration | -11 -10 -9 -9 ------------- Run | Yrd Mat Mat Sto Turns Passed 186 | 9 21 20 136 Spaces Moved 306 | 18 41 40 207 Core 306 | 18 41 40 207 Treads . | . . . . Legs . | . . . . Wheels . | . . . . Hover . | . . . . Flight . | . . . . Fastest Speed 50 | 50 50 50 50 Average Speed 50 | 50 50 50 50 Slowest Speed 50 | 50 50 50 50 Overloaded Moves . | . . . . Propulsion Burnouts . | . . . . Robots Hopped . | . . . . Cave-ins Triggered . | . . . . Exploration Rate (%) 20 | 3 12 7 58 Regions Visited 3 Branch Regions 1 Pre-discovered Areas . | . . . . Known Exits Taken . | . . . . Unknown Exits Taken 3 | 1 1 1 . Scrap Searched . | . . . . Spaces Dug . | . . . . Terrain Destroyed . | . . . . Melee . | . . . . Projectile . | . . . . AOE . | . . . . Terrain Rammed . | . . . . Walls Destroyed . | . . . . Machines Disabled . | . . . . Actions | -11 -10 -9 -9 --------- Run | Yrd Mat Mat Sto Total 335 | 17 40 39 239 Wait . | . . . . Move 303 | 17 40 39 207 Hop . | . . . . Pick Up . | . . . . Fast Attach . | . . . . Attach . | . . . . Detach . | . . . . Swap . | . . . . Drop . | . . . . Fire . | . . . . Melee . | . . . . Ram 2 | . . . 2 Kick . | . . . . Crush . | . . . . Escape Stasis 30 | . . . 30 Rewire . | . . . . Trap . | . . . . Miscellaneous . | . . . . Route ------- -11/Scrapyard -10/Materials -9/Materials -9/Storage (discovered 1 exit: [*Mat]) History --------- Turn | Location | Event 2 | -11/Scrapyard | Met Revision 17 2 | -11/Scrapyard | Discovered new exit (range 16) 10 | -11/Scrapyard | Entered Materials 23 | -10/Materials | Discovered new exit (range 15) 31 | -10/Materials | Entered another Materials area 31 | -9/Materials | Evolved 2 slots: Propulsion x1, Utility x1 43 | -9/Materials | Discovered new exit (range 16) 51 | -9/Materials | Entered Storage 159 | -9/Storage | Core integrity fell below 50% 164 | -9/Storage | Discovered new exit (range 9) 181 | -9/Storage | Core integrity fell below 20% 187 | -9/Storage | Destroyed by S-10 Pest with Light Assault Rifle Last Messages --------------- Field strength at 28. Field strength at 22. Field strength at 16. Field strength at 10. Field strength at 4. Stasis field depleted. Slammed into K-01 Serf. K-01 Serf collects debris. K-01 Serf cleans the Terminal. U-05 Engineer builds a Door. K-01 Serf destroyed. Slammed into S-10 Pest. Destabilizing: Core damaged (-12). R-06 Scavenger collects Sml. Matter Pod. R-06 Scavenger collects Wheel. R-06 Scavenger collects Lgt. Ion Engine. EXIT=FOUND W-16 Scout sends out distress signal. S-10 Pest destroyed. K-01 Serf collects debris. Map ----- +----------------------------------------------------+ | ???????????????????? """ """ """ | | ????????????????????# """ """ """ # | | ????????????????????# """" """" """" # | | ????????????????????# """" """" """" # | | ?????#######????????# """" """" """" # | | ?????# ########## "" "" "" " " # | | ?????# T "G" | | ?????# "" " | | ?????# | | #????# ########## | | # ##### ##????????####" "#######""T""########### | | ?# #????????????#"Y"#?????#"""""#?????????# | | " """ # #????????????#"""#?????#######?????????# | | " """ # ^ #????????????#####?????????????????????# | | " """ + #??????????????????????????????????????# | | # #?????????#####????????????????????????# | | # #?????????# #????????????????????????# | | ?# #?????????# #????????????????????????# | | #####?# #?????????# #????????????????????????# | | ?????## ##????????# #????????????????????????? | | ?????# #????????# #????????????????????????? | | ?????# #????????+ +????????????????????????? | | ?????# #????????# #????????????????????????? | | ?????# #????????# #????????????????????????? | | ?????# #????????+ #####T######?????????????? | | ####### ##????????# k @ ????????? | | ?# #??????#+## Y ????????? | | # #??????# s##############???????????? | | " # #??????# #?""" #??????????????? | | " + #??????# s # """ #??????????????? | | " # #??????# # """ #??????????????? | | # #??????# + #??????????????? | | ?# #??????# # "#??????????????? | | #####?# #??????# + T#??????????????? | | ??????# #????### *[# % "#??????????????? | | ????#?# #???# =%=# #??????????????? | | ????? # #???# ##+###/####### ####??????????????? | | ????" # #???# ## / #?????????????????????? | | ????" / #???# ## ##????????????????????? | | ????### #???# ## #????????????????????? | | ??????# #???# ## ##????????????????????? | | ??????# #???# ## """ """ #?????????????????????? | | ??????# #???# ## """ """ #?????????????????????? | | ??????# ##### ## """ """ #?????????????????????? | | ####### + #?????????????????????? | | ###############?????????????????????? | | < # """ #????????????????????????????? | | + """ #????????????????????????????? | | #####+######## """ #????????????????????????????? | | ??? ?????? #????????????????????????????? | +----------------------------------------------------+ Best States ------------- Heat Dissipation 28 Energy Generation 5 Energy Capacity 100 Matter Stores 300 Matter Capacity 300 Sight Range 16 Terrain Scan Density 10 Evasion (%) 50 Item Schematics ----------------- None Robot Schematics ------------------ None Fabricated ------------ Nothing Alien Tech Used ----------------- None Achievements -------------- None Challenges ------------ None Game ------ Seed CoordinationDrainedWarhead Manual? 0 Play Time 00:02:56 Cumulative 250.8 hours Start 2024.08.25 @ 23:38:51 End 2024.08.25 @ 23:40:37 Sessions 1 Manual Loads 0 Difficulty Rogue Special Mode None Game No. 459 Rogue 457 Adventurer 2 Explorer 0 Win Type - Total 13 Types 10/0/1/2/0/0/0/0/0 Lore% 73 Gallery% 68 Achievement% 57 Wizard Run 0 Options --------- Layout 0 ASCII 0 Keyboard 1 Movement Numpad Keybinds 1 Fullscreen 2 Font 18/SmallcapsGlow Map View 76x50 Zoom Use 0% Tactical HUD 1 Map Filters NONE Filters NONE Steam 1 RUN: 02ba94b5-c325-448a-82da-b0f38e508332